Cogmind - Beta 13 @@@ ROGUE MODE // 2024.04.02 @ 20:31:02 Player: MORONI274 Result: Destroyed by H-55 Commando with Gauss Rifle Performance ------------- Evolutions (3) 1500 Regions Visited (5) 1000 Robots Destroyed (62) 310 Value Destroyed (1918) 1918 Prototype IDs (0) 0 Alien Tech Used (0) 0 Bonus (-267) -267 TOTAL SCORE: 4461 Bonus ------- Friendly Fire -267 Cogmind --------- Core Integrity 0/700 Matter 212/300 Energy 100/100 System Corruption 12% Temperature Cool (0) Movement Core (1550) Ox30 Location -7/Factory Parts ------- > --- POWER (2) -------- (None) > --- PROPULSION (3) --- (None) > --- UTILITY (4) ------ Huge Storage Unit Armor Integrity Analyzer Advanced ECM Suite > --- WEAPON (4) ------- Backup Laser III Backup Laser III Backup Laser III Mining Claw > --- INVENTORY (25) --- Xenon Bombardment Thruster Xenon Bombardment Thruster Xenon Bombardment Thruster Xenon Bombardment Thruster Improved Heat Sink Large Matter Pod (0) Weight Redist. System Trap Scanner Terrain Scanner Improved Terrain Scan Processor Targeting Computer Armor Integrity Analyzer Armor Integrity Analyzer Armor Integrity Analyzer Matter Filter Advanced ECM Suite Reaction Control System Improved Light Armor Plating Long-range Tractor Beam Welding Torch Peak State ------------ > --- POWER ------------ Light Ion Engine Backup Power III > --- PROPULSION ------- Advanced Treads Advanced Treads Advanced Treads > --- UTILITY ---------- Huge Storage Unit Armor Integrity Analyzer Hardened Medium Armor Plating Long-range Tractor Beam > --- WEAPON ----------- Field Laser Minigun Mining Claw Mining Claw > --- INVENTORY -------- Carbon-fiber Leg Wheel Xenon Bombardment Thruster Xenon Bombardment Thruster Xenon Bombardment Thruster Xenon Bombardment Thruster Xenon Bombardment Thruster Xenon Bombardment Thruster Improved Heat Sink Large Matter Pod Weight Redist. System Trap Scanner Terrain Scanner Improved Terrain Scan Processor Targeting Computer Matter Filter Advanced ECM Suite Advanced ECM Suite Reaction Control System Improved Light Armor Plating Long-range Tractor Beam Backup Laser III Backup Laser III Backup Laser III Welding Torch [Rating: 39] Favorites ----------- Power Light Ion Engine Engine Light Ion Engine Power Core Micro Nuclear Core Propulsion Light Treads Treads Light Treads Leg Carbon-fiber Leg Wheel Compact Wheel Flight Unit Xenon Bombardment Thruster Utility Huge Storage Unit Device Terrain Scanner Storage Huge Storage Unit Processor Targeting Computer Hackware Hacking Suite Protection Light Armor Plating Weapon Light Assault Rifle Energy Gun Backup Laser III Energy Cannon Beam Cannon Ballistic Gun Light Assault Rifle Ballistic Cannon Light Cannon Launcher Grenade Launcher Special Weapon Welding Torch Slashing Weapon Mining Claw Build | -11 -10 -10 -10 -8 -7 ------- Run | Yrd Mat Min Sub Mat Fac Slots Evolved 6 | . . . . 4 2 Power 1 | . . . . . 1 Propulsion 1 | . . . . 1 . Utility 2 | . . . . 2 . Weapon 2 | . . . . 1 1 Parts Attached 79 | 6 4 . 7 14 48 Power 11 | 1 . . 1 . 9 Engine 6 | 1 . . 1 . 4 Core 5 | . . . . . 5 Reactor . | . . . . . . Propulsion 20 | 2 . . 4 5 9 Treads 7 | 2 . . 2 . 3 Leg 1 | . . . . . 1 Wheel 11 | . . . 2 5 4 Hover . | . . . . . . Flight 1 | . . . . . 1 Utility 23 | 1 3 . 1 6 12 Device 7 | . 1 . . 1 5 Storage 4 | 1 2 . . 1 . Processor 2 | . . . . 1 1 Hackware 1 | . . . . 1 . Protection 9 | . . . 1 2 6 Artifact . | . . . . . . Weapon 25 | 2 1 . 1 3 18 Energy Gun 5 | . . . . . 5 Energy Cannon 1 | . . . . . 1 Ballistic Gun 9 | 2 . . 1 1 5 Ballistic Cannon 2 | . . . . 1 1 Launcher 5 | . 1 . . 1 3 Special Weapon 1 | . . . . . 1 Impact Weapon . | . . . . . . Slashing Weapon 2 | . . . . . 2 Piercing Weapon . | . . . . . . Special Melee Weapon . | . . . . . . Unidentified Prototypes . | . . . . . . Parts Lost 45 | . . . 3 . 42 Power 11 | . . . 1 . 10 Propulsion 10 | . . . 1 . 9 Utility 7 | . . . . . 7 Weapon 17 | . . . 1 . 16 Highest Loss Streak 8 | . . . 3 . 8 To Critical Strikes . | . . . . . . Average Slot Usage (%) 90 | . 99 100 99 98 73 Engine 9 | . 14 14 13 9 2 Core 1 | . . . . . 4 Treads 16 | . 28 28 27 . 5 Wheel 5 | . . . . 25 6 Device 7 | . 13 14 2 . 6 Storage 13 | . 14 14 14 18 10 Processor 3 | . . . . 9 5 Protection 4 | . . . 11 6 3 Energy Gun 1 | . . . . . 5 Ballistic Gun 15 | . 23 14 25 17 7 Launcher 5 | . 4 14 2 1 2 Slashing Weapon 2 | . . . . . 6 Naked Turns . | . . . . . . Heaviest Build 106 | 10 88 88 88 94 106 Greatest Support 66 | 40 40 40 40 56 66 Greatest Overweight (x) 33 | . 2 2 4 2 33 Average Overweight (x) 2 | . . 2 2 1 3 Largest Inventory Capacity 25 | 8 25 25 25 25 25 Average Capacity 23 | 7 16 25 25 25 25 Most Carried 25 | 7 18 25 25 25 25 Average Carried 21 | 3 9 21 24 24 21 Final Capacity 25 | 8 25 25 25 25 25 Final Carried 25 | 4 18 25 25 25 20 Class Distribution -------------------- 70% | Mutant 27% | Gunner Dominant Class ---------------- Mutant | -10/Materials Mutant | -10/Mines Mutant | -10/Subcaves Gunner | -8/Materials Mutant | -7/Factory Resources | -11 -10 -10 -10 -8 -7 ----------- Run | Yrd Mat Min Sub Mat Fac Matter Collected 1546 | 225 135 238 134 165 649 Remotely 261 | . . . . . 261 Salvage Created 1614 | . 198 106 87 256 967 Parts 101 | . 18 9 7 16 51 Haulers Intercepted . | . . . . . . Recyclers Shooed 3 | . . . . . 3 Parts Field Recycled . | . . . . . . Retrieved Matter . | . . . . . . Parts Self-Destructed 4 | . . . 4 . . Prevented . | . . . . . . Kills | -11 -10 -10 -10 -8 -7 ------- Run | Yrd Mat Min Sub Mat Fac Combat Hostiles Destroyed 40 | . 6 5 3 5 21 Melee 7 | . . . . . 7 Guns 9 | . 3 . . 3 3 Cannons 3 | . . . . 2 1 AOE 21 | . 3 5 3 . 10 Classes Destroyed 11 | . 4 . 1 1 5 Worker 8 | . . . . 1 7 Builder 6 | . . . . . 6 Mechanic 1 | . . . . . 1 Operator 3 | . 1 . . 1 1 Watcher 3 | . 2 . . . 1 Swarmer 6 | . 3 3 . . . Grunt 23 | . 3 2 . 5 13 Sentry 2 | . . . . . 2 Hunter 4 | . . . . . 4 Programmer 2 | . . . . . 2 Subdweller 3 | . . . 3 . . Thug 1 | . . 1 . . . Best Kill Streak 9 | . 3 5 3 2 9 Combat Bots Only 5 | . 3 5 3 2 4 Max Kills in Single Turn 4 | . 2 3 2 1 4 Gunslinging . | . . . . . . Exploded 3 | . 2 3 2 . 3 Melee 1 | . . . . . 1 Uniques/NPCs Destroyed . | . . . . . . Combat | -11 -10 -10 -10 -8 -7 -------- Run | Yrd Mat Min Sub Mat Fac Hostile Shots Fired 454 | . 31 10 14 21 378 Missed 119 | . 12 3 4 9 91 Damage Taken 4785 | . 179 125 249 194 4038 Core 834 | . 56 23 23 17 715 Absorbed by Shields . | . . . . . . Redirected to Shielding 54 | . . . . . 54 Regen/Repaired (Parts) 50 | . . . . 50 . Core Remaining (%) 85 | 100 . . 59 96 . Volleys Fired 115 | . 27 8 9 22 49 Largest 4 | . 2 2 2 3 4 Hottest 133 | . 50 50 50 75 133 Shots Fired 263 | . 52 15 16 66 114 Gun 170 | . 50 8 9 44 59 Cannon 46 | . . . . 22 24 Launcher 47 | . 2 7 7 . 31 Special . | . . . . . . Kinetic 197 | . 50 8 9 66 64 Thermal 19 | . . . . . 19 Explosive 47 | . 2 7 7 . 31 Electromagnetic . | . . . . . . Robot Hit Streak 12 | . 9 5 3 12 10 Robot Miss Streak 4 | . 3 4 1 2 3 Penetration Max . | . . . . . . Secondary Targets . | . . . . . . Shots Hit Robots 212 | . 29 5 10 44 124 Core Hits 142 | . 17 11 7 20 87 Critical Kills 1 | . . . . . 1 Critical Parts Destroyed . | . . . . . . Critical Strikes 3 | . . . . 1 2 Burn 1 | . . . . . 1 Destroy 1 | . . . . . 1 Blast 1 | . . . . 1 . Melee Attacks 84 | . . . . . 84 Impact . | . . . . . . Slashing 84 | . . . . . 84 Piercing . | . . . . . . Sneak Attacks 7 | . . . . . 7 Combat Hostiles . | . . . . . . Follow-up Attacks 12 | . . . . . 12 Damage Inflicted 6769 | . 409 508 1041 490 4321 Guns 974 | . 260 39 43 262 370 Cannons 488 | . . . . 228 260 Explosions 3958 | . 149 469 998 . 2342 Melee 1258 | . . . . . 1258 Ramming 91 | . . . . . 91 Kinetic 1279 | . 260 39 43 490 447 Thermal 183 | . . . . . 183 Explosive 3958 | . 149 469 998 . 2342 Electromagnetic . | . . . . . . Impact . | . . . . . . Slashing 1258 | . . . . . 1258 Piercing . | . . . . . . Highest Corruption 12 | . . . . . 12 Average Corruption 9 | . . . . . 9 Corruption Purged . | . . . . . . Corruption Blocked . | . . . . . . Effects 45 | . . . . . 45 Message Errors 11 | . . . . . 11 Matter Fused 12 | . . . . . 12 Heat Flow Errors 3 | . . . . . 3 Energy Discharges 10 | . . . . . 10 Data Loss (minor) 5 | . . . . . 5 Data Loss (major) 2 | . . . . . 2 Alerts 2 | . . . . . 2 Overload Shots . | . . . . . . Overflow Damage 182 | . 23 . . . 159 Projectiles . | . . . . . . Explosions 116 | . 23 . . . 93 Melee 66 | . . . . . 66 Knockbacks 7 | . . . . 2 5 Impact 2 | . . . . . 2 Kinetic 4 | . . . . 2 2 Secondary 1 | . . . . . 1 Self-Inflicted Damage 374 | . . 26 . . 348 Shots 15 | . . 3 . . 12 Rammed 6 | . . . . . 6 Targets Rammed 6 | . . . . . 6 Kicked . | . . . . . . Crushed . | . . . . . . Highest Temperature 339 | . 12 27 . 65 339 Average Temperature 90 | . 6 12 . 27 134 Received Heat Transfer 1113 | . 54 51 66 126 816 Effects 4 | . . . . . 4 Energy Bleed 1 | . . . . . 1 Interference 3 | . . . . . 3 Siege Activations . | . . . . . . Robots Corrupted . | . . . . . . Combat Hostiles . | . . . . . . Parts Fried . | . . . . . . Impact Corruptions . | . . . . . . Robots Melted . | . . . . . . Combat Hostiles . | . . . . . . Parts Melted . | . . . . . . Heat Transferred 481 | . . . . . 481 Parts Sabotaged . | . . . . . . Parts Stolen . | . . . . . . Parts Stripped . | . . . . . . Power Chain Reactions . | . . . . . . Alert | -11 -10 -10 -10 -8 -7 ------- Run | Yrd Mat Min Sub Mat Fac Peak Influence 306 | . 129 193 . 124 306 Initial 56 | . . 35 . . 56 Average 85 | . 58 63 . 53 120 Maximum Alert Level 1 | . . . . . 1 Low Security (%) 94 | 100 100 100 . 100 87 Level 1 5 | . . . . . 12 Level 2 . | . . . . . . Level 3 . | . . . . . . Level 4 . | . . . . . . Level 5 . | . . . . . . High Security . | . . . . . . Max Security . | . . . . . . Squads Dispatched 18 | . 2 . . 4 12 Investigation 2 | . 1 . . . 1 Extermination 2 | . . . . . 2 Reinforcement 7 | . 1 . . 1 5 Assault . | . . . . . . Garrison 7 | . . . . 3 4 Intercept . | . . . . . . Searches Triggered . | . . . . . . Construction Impeded 2 | . . . . . 2 Haulers Reinforced 2 | . . . . . 2 Active Scanning Responses . | . . . . . . Cargo Convoy Interrupts . | . . . . . . Stealth | -11 -10 -10 -10 -8 -7 --------- Run | Yrd Mat Min Sub Mat Fac Distress Signals . | . . . . . . Communications Jammed . | . . . . . . Distress Signals . | . . . . . . Times Spotted 69 | . 12 3 12 7 35 Peak Tracking Total 5 | . 3 2 5 2 5 Tactical Retreats 2 | . . . . 1 1 Traps | -11 -10 -10 -10 -8 -7 ------- Run | Yrd Mat Min Sub Mat Fac Traps Triggered 1 | . 1 . . . . Indirectly . | . . . . . . Trap Hack Attempts . | . . . . . . Triggered . | . . . . . . Disarmed . | . . . . . . Reprogrammed . | . . . . . . Reused . | . . . . . . Traps Extracted . | . . . . . . Installed . | . . . . . . Triggered . | . . . . . . Machines | -11 -10 -10 -10 -8 -7 ---------- Run | Yrd Mat Min Sub Mat Fac Machines Disabled 9 | . 1 . . 1 7 Max in Single Turn 5 | . 1 . . 1 5 Machines Repaired . | . . . . . . Machines Dismantled . | . . . . . . Machines Sabotaged . | . . . . . . Overloaded Fab Kills . | . . . . . . Hacking | -11 -10 -10 -10 -8 -7 --------- Run | Yrd Mat Min Sub Mat Fac Machines Accessed 11 | . 1 . . 6 4 Terminals 4 | . 1 . . 3 . Fabricators 2 | . . . . . 2 Repair Stations 2 | . . . . 2 . Recycling Units . | . . . . . . Scanalyzers 2 | . . . . 1 1 Garrison Access 1 | . . . . . 1 Total Hacks 26 | . 1 . . 20 5 Successful 19 | . 1 . . 14 4 Failed 6 | . . . . 5 1 Catastrophic 2 | . . . . 1 1 Database Lockouts 1 | . . . . 1 . Manual 1 | . . . . . 1 Terminals 10 | . 1 . . 9 . Fabricators 3 | . . . . . 3 Repair Stations 8 | . . . . 8 . Recycling Units . | . . . . . . Scanalyzers 4 | . . . . 3 1 Garrison Access 1 | . . . . . 1 Terminal Hacks 7 | . 1 . . 6 . Record 5 | . . . . 5 . Robot Analysis 1 | . . . . 1 . Alert Level 1 | . 1 . . . . Fabricator Hacks 3 | . . . . . 3 Network Status 1 | . . . . . 1 Load Schematic 1 | . . . . . 1 Build 1 | . . . . . 1 Repair Station Hacks 5 | . . . . 5 . Scan Component 3 | . . . . 3 . Repair 2 | . . . . 2 . Recycling Unit Hacks . | . . . . . . Scanalyzer 4 | . . . . 3 1 Insert Component 3 | . . . . 2 1 Analyze 1 | . . . . 1 . Garrison Access Hacks . | . . . . . . Unauthorized Hacks . | . . . . . . Terminals . | . . . . . . Fabricators . | . . . . . . Repair Stations . | . . . . . . Recycling Units . | . . . . . . Scanalyzers . | . . . . . . Garrison Access . | . . . . . . Data Cores Recovered 2 | . 1 . . . 1 Used . | . . . . . . Hacking Detections 7 | . . . . 3 4 Full Trace Events 2 | . . . . 1 1 Feedback Events . | . . . . . . Feedback Blocked . | . . . . . . Robot Schematics Acquired . | . . . . . . Robots Built . | . . . . . . Authchips . | . . . . . . Time . | . . . . . . Total Robot Build Rating . | . . . . . . Part Schematics Acquired 1 | . . . . 1 . Parts Built 1 | . . . . . 1 Authchips . | . . . . . . Time 25 | . . . . . 25 Total Part Build Rating 1 | . . . . . 1 Parts Repaired 2 | . . . . 2 . Time 58 | . . . . 58 . Parts Recycled . | . . . . . . Recycled Matter . | . . . . . . Retrieved Matter . | . . . . . . Retrieved Components . | . . . . . . Parts Scanalyzed 1 | . . . . 1 . Part Schematics Acquired 1 | . . . . 1 . Parts Damaged . | . . . . . . Bothacking | -11 -10 -10 -10 -8 -7 ------------ Run | Yrd Mat Min Sub Mat Fac Used RIF Installer . | . . . . . . Robots Hacked . | . . . . . . Non-combat . | . . . . . . Combat . | . . . . . . Robot Hacks Applied . | . . . . . . Relay Couplers Released . | . . . . . . Fabnet Peak Effective % . | . . . . . . Robots Rewired . | . . . . . . Allies Hacked . | . . . . . . Hacks Repelled . | . . . . . . Allies | -11 -10 -10 -10 -8 -7 -------- Run | Yrd Mat Min Sub Mat Fac Total Allies . | . . . . . . Largest Group . | . . . . . . Highest-Rated Group . | . . . . . . Highest-Rated Ally . | . . . . . . Total Orders . | . . . . . . Ally Attacks . | . . . . . . Total Damage . | . . . . . . Kills . | . . . . . . Allies Corrupted . | . . . . . . Allies Melted . | . . . . . . Intel | -11 -10 -10 -10 -8 -7 ------- Run | Yrd Mat Min Sub Mat Fac Robot Analysis Total 1 | . . . . 1 . Derelict Logs Recovered 1 | . . 1 . . . Drone Launches . | . . . . . . Drone Recoveries . | . . . . . . Exploration | -11 -10 -10 -10 -8 -7 ------------- Run | Yrd Mat Min Sub Mat Fac Turns Passed 6289 | 129 623 1298 1300 689 2250 Spaces Moved 2492 | 75 302 397 385 477 856 Core 11 | 4 . . . . 7 Treads 1308 | 71 302 397 369 . 169 Legs 63 | . . . . . 63 Wheels 1110 | . . . 16 477 617 Hover . | . . . . . . Flight . | . . . . . . Fastest Speed 50 | 50 160 320 130 116 116 Average Speed 222 | 154 177 320 328 121 206 Slowest Speed 1700 | 160 320 320 560 130 1700 Overloaded Moves . | . . . . . . Propulsion Burnouts . | . . . . . . Robots Hopped . | . . . . . . Cave-ins Triggered . | . . . . . . Exploration Rate (%) 25 | 6 46 42 20 28 13 Regions Visited 5 Branch Regions 2 Pre-discovered Areas 1 | . . . 1 . . Known Exits Taken . | . . . . . . Unknown Exits Taken 5 | 1 1 1 1 1 . Scrap Searched 1 | . . 1 . . . Spaces Dug . | . . . . . . Terrain Destroyed 203 | . 7 53 47 . 96 Melee . | . . . . . . Projectile . | . . . . . . AOE 203 | . 7 53 47 . 96 Terrain Rammed . | . . . . . . Walls Destroyed . | . . . . . . Machines Disabled . | . . . . . . Actions | -11 -10 -10 -10 -8 -7 --------- Run | Yrd Mat Min Sub Mat Fac Total 2906 | 87 348 413 411 547 1100 Wait 42 | . . . . 6 36 Move 2487 | 74 301 396 384 476 856 Hop . | . . . . . . Pick Up 75 | 7 14 8 6 17 23 Fast Attach 22 | 3 1 . 1 2 15 Attach 37 | 3 . . 3 4 27 Detach 4 | . . . . . 4 Swap 20 | . 3 . 3 8 6 Drop 27 | . 2 1 5 12 7 Fire 115 | . 27 8 9 22 49 Melee 71 | . . . . . 71 Ram 5 | . . . . . 5 Kick . | . . . . . . Crush 1 | . . . . . 1 Escape Stasis . | . . . . . . Rewire . | . . . . . . Trap . | . . . . . . Miscellaneous . | . . . . . . Route ------- -11/Scrapyard -10/Materials -10/Mines -10/Subcaves -8/Materials -7/Factory (discovered 1 exit: [*Fac]) History --------- Turn | Location | Event 32 | -11/Scrapyard | Discovered new exit (range 16) 130 | -11/Scrapyard | Entered Materials 316 | -10/Materials | Build established: Mutant 723 | -10/Materials | Discovered new exit (range 5) 753 | -10/Materials | Entered Mines 813 | -10/Mines | Met a Derelict bent on vengeance 1592 | -10/Mines | Learned Materials emergency access door positions 1633 | -10/Mines | Joined a pair of Derelicts in attacking an 0b10 outpost 2044 | -10/Mines | Discovered new exit (range 3) 2051 | -10/Mines | Entered Subcaves 2064 | -10/Subcaves | Learned location of Zion (-6) 2064 | -10/Subcaves | Met a Zionite searching for "candidates" 2262 | -10/Subcaves | Ambushed by swarm of Subdwellers 2273 | -10/Subcaves | Ambushed by Subdwellers from Twisted Machinery 2273 | -10/Subcaves | Ambushed by Subdweller buried in earth 2310 | -10/Subcaves | Lost 3 parts (1p1n1w) 3280 | -10/Subcaves | Discovered new exit (range 15) 3332 | -10/Subcaves | Shifting Twisted Machinery released Sub. Laser 3332 | -10/Subcaves | Shifting Twisted Machinery released Sub. Monowheel 3351 | -10/Subcaves | Entered Materials 3351 | -8/Materials | Evolved 4 slots: Propulsion x1, Utility x2, Weapon x1 3475 | -8/Materials | Garrison activated, responded to threat 3651 | -8/Materials | Build established: Gunner 3732 | -8/Materials | Repaired Sub. Optics 3758 | -8/Materials | Repaired Lgt. Assault Rifle 3930 | -8/Materials | Discovered new exit (range 12) 3975 | -8/Materials | Central database locked down 4040 | -8/Materials | Entered Factory 4040 | -7/Factory | Evolved 2 slots: Power x1, Weapon x1 4219 | -7/Factory | Discovered new exit (range 4) 4399 | -7/Factory | Garrison activated, responded to threat 4455 | -7/Factory | Lost 8 parts (1p1n1u5w) 4722 | -7/Factory | Fabricated Grenade Launcher (x1) 4964 | -7/Factory | Core integrity fell below 50% 4994 | -7/Factory | Lost 6 parts (1p1n1u3w) 5170 | -7/Factory | Lost 5 parts (1p1n2u1w) 5243 | -7/Factory | Build established: Mutant 5536 | -7/Factory | Garrison activated, responded to threat 5630 | -7/Factory | Core integrity fell below 20% 5691 | -7/Factory | Lost 8 parts (2p3n1u2w) 5797 | -7/Factory | System corruption reached 10% 5857 | -7/Factory | Lost 5 parts (2p1n2w) 6290 | -7/Factory | Destroyed by H-55 Commando with Gauss Rifle Last Messages --------------- 05946_ System corrupted: Matter fused (-9). 05963_ System corrupted: Energy discharge (-54). 05981_ IBLXW 06115_ System corrupted: Heat flow error (+159). 06132_ System corrupted: Matter fused (-9). 06181_ System corrupted: Substantial component data lost. 06228_ System corrupted: Energy discharge (-49). 06247_ System corrupted: IFF burst signal emitted. 06266_ |IZQPSO IN95IA I8TQPXI7P=U J=APN OB 06269_ Lrn. Tractor Beam destroyed. 06278_ Penetrated by Slug. 06281_ Lgt. Nuclear Core destroyed. 06283_ FWGZ/:5 Map ----- +----------------------------------------------------+ | ???????????????????????? ""??# #####?????? | | ???????????????????????? "" # #?????? | | ????????????????????????? """ + # ""??? | | ????????????????????????? """ # + ???? | | ??????????????????????????????# #?????? | | ??????????????????????????????# #?????? | | ??????????????????????????????# #?????? | | ?????????????????????########## #?????? | | ?????????????????????# # #?????? | | ?????????????????????# "" / #?????? | | ?????????????????????# """ # #?????? | | ?????????????????????# "R # #?????? | | ?????????????????????# """ # #?????? | | ?????????????????????# """ #########+####??? | | ?????????????????????# #???????????????? | | ?????????????????????# #???????????????? | | ?????????????????????# #???????????????? | | ???????????????????############???????????????? | | ???????????????????# #????????????????? | | ???????????????????# #????????????????? | | ???????????????????# #????????????????# | | ???????????????????# #????????????????# | | ???????????????????# ! #????????????????# | | ??????????# ???????# ! #????????????????# | | ??????????# ??????# ! #????????????????# | | ?????????## ????# @ #????????????????# | | ?????????# ???#####h###################### | | ?????????# ##### # # # | | ?????????# # """" # + | | ?????????+ T + """" + # ## | | ?????????# # """" # """""" # #? | | ?????????# ##### # """" # """""" =# #? | | ?????????# ?????### ### # """""" # #? | | ?????????#### ?????????# #?###+#### """"" # #? | | ????????????#??????????# #???# #??##########+## #? | | ???????????????????????# #???# #???????????# #? | | ???????????????????????# #???# #???????????# ## | | ???????????????????????# #???# #???????????# | | ???????????????????????# #???# #???????????####### | | ???????????????????????# #???# #?????????????????? | | ???????????????????????? #???# #?????????????????? | | ???????????????????????? ???? +?????????????????? | | ???????????????????????? ???? #?????????????????? | | ???????????????????????? ??? #?????????????????? | | ???????????????????????? ???" #?????????????????? | | ???????????????????????? ??F" #?????????????????? | | ???????????????????????? ??"" #?????????????????? | | ??????????????????????????"" #?????????????????? | | ??????????????????????????? ??????????????????? | | ???????????????????????????"" ??????????????????? | +----------------------------------------------------+ Best States ------------- Heat Dissipation 34 Energy Generation 25 Energy Capacity 220 Matter Stores 450 Matter Capacity 450 Sight Range 16 Terrain Scan Range 14 Terrain Scan Density 10 ECM Strength 2 Armor Coverage 800 Propulsion Shielding 33 Evasion (%) 40 Targeting Accuracy 5 Armor Integrity Analysis 30 Recoil Reduction 3 Matter Filtering 30 Offensive Hacking 10 Item Schematics ----------------- Grenade Launcher | -8/Materials | Scanalyzed Robot Schematics ------------------ None Fabricated ------------ Grenade Launcher | x1 | -7/Factory Alien Tech Used ----------------- None Achievements -------------- Backstab Just What I Needed Challenges ------------ None Game ------ Seed MetafieldSignalScythe Manual? 0 Play Time 00:56:59 Cumulative 7.3 hours Start 2024.04.02 @ 08:24:42 End 2024.04.02 @ 20:31:02 Sessions 4 Manual Loads 0 Difficulty Rogue Special Mode None Game No. 12 Rogue 12 Adventurer 0 Explorer 0 Win Type - Total 0 Types 0/0/0/0/0/0/0/0/0 Lore% 9 Gallery% 14 Achievement% 13 Wizard Run 0 Options --------- Layout 2 ASCII 0 Keyboard 0 Movement Arrows Keybinds 0 Fullscreen 0 Font 14/SmallcapsGlow Map View 59x54 Zoom Use 0% Tactical HUD 1 Map Filters NONE Filters NONE Steam SD RUN: d1e60aea-4365-46df-8d55-dc71dfe9324d